[Event "Live Chess"]
[Site "Chess.com"]
[Date "2023.05.21"]
[Round "-"]
[White "JanMur7"]
[Black "raminguy"]
[Result "0-1"]
[WhiteElo "1954"]
[BlackElo "1957"]
[TimeControl "300"]
[EndTime "5:06:38 PDT"]
[Termination "raminguy won by resignation"]

1. e4 {[%clk 0:04:58]} 1... e5 {[%clk 0:04:59.4]} 2. Nf3 {[%clk 0:04:56.7]} 2...
Nc6 {[%clk 0:04:59.3]} 3. Nc3 {[%clk 0:04:55.9]} 3... Nf6 {[%clk 0:04:58.2]} 4.
Nxe5 {[%clk 0:04:55.3]} 4... Nxe5 {[%clk 0:04:57]} 5. d4 {[%clk 0:04:54.9]} 5...
d6 {[%clk 0:04:56.4]} 6. dxe5 {[%clk 0:04:53.8]} 6... dxe5 {[%clk 0:04:55.9]} 7.
Qxd8+ {[%clk 0:04:52.1]} 7... Kxd8 {[%clk 0:04:55.8]} 8. Be3 {[%clk 0:04:48.4]}
8... Bb4 {[%clk 0:04:54.8]} 9. f3 {[%clk 0:04:47.1]} 9... Ke7 {[%clk 0:04:50.8]}
10. Bc4 {[%clk 0:04:45.9]} 10... Rd8 {[%clk 0:04:48]} 11. Kf2 {[%clk 0:04:44]}
11... Be6 {[%clk 0:04:47.1]} 12. Bxe6 {[%clk 0:04:30.2]} 12... fxe6 {[%clk
0:04:44.8]} 13. Nb5 {[%clk 0:04:28.8]} 13... c6 {[%clk 0:04:40.1]} 14. c3 {[%clk
0:04:21.8]} 14... Ba5 {[%clk 0:04:35.7]} 15. b4 {[%clk 0:04:08.7]} 15... Bb6
{[%clk 0:04:30.9]} 0-1

[Event "Live Chess"]
[Site "Chess.com"]
[Date "2023.05.21"]
[Round "-"]
[White "Nicckui"]
[Black "srichess4u"]
[Result "1-0"]
[WhiteElo "1774"]
[BlackElo "642"]
[TimeControl "300"]
[EndTime "5:06:43 PDT"]
[Termination "Nicckui won by resignation"]

1. e4 {[%clk 0:04:58.3]} 1... e5 {[%clk 0:04:58]} 2. Nc3 {[%clk 0:04:57.3]} 2...
Nf6 {[%clk 0:04:55.8]} 3. f4 {[%clk 0:04:56.3]} 3... exf4 {[%clk 0:04:54]} 4. e5
{[%clk 0:04:55.7]} 4... Ng4 {[%clk 0:04:51.9]} 5. Qxg4 {[%clk 0:04:54.3]} 5...
Bc5 {[%clk 0:04:46.9]} 6. Qxg7 {[%clk 0:04:51.4]} 6... Rf8 {[%clk 0:04:43.3]} 7.
Ne4 {[%clk 0:04:46.5]} 7... Bxg1 {[%clk 0:04:39.8]} 8. Nf6+ {[%clk 0:04:43.4]}
8... Ke7 {[%clk 0:04:37.7]} 9. Rxg1 {[%clk 0:04:39.1]} 9... Ke6 {[%clk
0:04:35.4]} 10. Bc4+ {[%clk 0:04:36.5]} 10... Kxe5 {[%clk 0:04:32.8]} 11. Ne8+
{[%clk 0:04:28.5]} 11... f6 {[%clk 0:04:27.9]} 12. Qxf8 {[%clk 0:04:25.9]} 12...
d5 {[%clk 0:04:20.9]} 13. d4+ {[%clk 0:04:22]} 13... Kxd4 {[%clk 0:04:19.1]} 14.
Bd3 {[%clk 0:04:08.4]} 14... Ke5 {[%clk 0:04:12.5]} 15. Bd2 {[%clk 0:04:01]}
15... Bg4 {[%clk 0:04:04.8]} 16. Bc3+ {[%clk 0:03:59.4]} 16... Ke6 {[%clk
0:04:01.8]} 17. Kd2 {[%clk 0:03:56.2]} 17... Qd6 {[%clk 0:03:57.4]} 18. Rae1+
{[%clk 0:03:55.3]} 18... Kd7 {[%clk 0:03:55.4]} 19. Nxd6 {[%clk 0:03:50.3]}
19... cxd6 {[%clk 0:03:53.7]} 20. Qf7+ {[%clk 0:03:46.7]} 20... Kc6 {[%clk
0:03:45.4]} 21. Re7 {[%clk 0:03:46.1]} 21... Nd7 {[%clk 0:03:32.6]} 22. h3
{[%clk 0:03:42.4]} 22... Bh5 {[%clk 0:03:24.8]} 23. Bb5+ {[%clk 0:03:37.4]}
23... Kxb5 {[%clk 0:03:22.6]} 24. Qxd5+ {[%clk 0:03:36.5]} 24... Nc5 {[%clk
0:03:01.4]} 25. Qxh5 {[%clk 0:03:35]} 25... b6 {[%clk 0:02:52.1]} 26. b4 {[%clk
0:03:33.8]} 26... Rf8 {[%clk 0:02:44.9]} 27. bxc5 {[%clk 0:03:32.4]} 27... dxc5
{[%clk 0:02:43.3]} 28. a4+ {[%clk 0:03:30.6]} 28... Kxa4 {[%clk 0:02:40.1]} 29.
Rxa7+ {[%clk 0:03:29.2]} 29... Kb5 {[%clk 0:02:37.3]} 30. Qd5 {[%clk 0:03:23.3]}
30... Rf7 {[%clk 0:02:29.3]} 31. Rxf7 {[%clk 0:03:21]} 1-0

[Event "Live Chess"]
[Site "Chess.com"]
[Date "2023.05.21"]
[Round "-"]
[White "DC_NC_11"]
[Black "luckywookie"]
[Result "0-1"]
[WhiteElo "1273"]
[BlackElo "783"]
[TimeControl "300"]
[EndTime "5:06:46 PDT"]
[Termination "luckywookie won - game abandoned"]

1. c4 {[%clk 0:04:58.5]} 1... e5 {[%clk 0:04:55]} 2. Nc3 {[%clk 0:04:57.3]} 2...
Nf6 {[%clk 0:04:48.1]} 3. g3 {[%clk 0:04:56.4]} 3... d5 {[%clk 0:04:34]} 4. cxd5
{[%clk 0:04:54.5]} 4... Nxd5 {[%clk 0:04:32.3]} 5. Bg2 {[%clk 0:04:53.9]} 5...
c6 {[%clk 0:04:30.4]} 6. e4 {[%clk 0:04:50.1]} 6... Nxc3 {[%clk 0:04:28.5]} 7.
dxc3 {[%clk 0:04:37.7]} 7... Qxd1+ {[%clk 0:04:26.7]} 8. Kxd1 {[%clk 0:04:37.6]}
8... Bc5 {[%clk 0:04:24]} 9. f4 {[%clk 0:04:35.8]} 9... exf4 {[%clk 0:04:19.6]}
10. Bxf4 {[%clk 0:04:35.7]} 10... O-O {[%clk 0:04:13.5]} 11. Nf3 {[%clk
0:04:25.7]} 11... Bg4 {[%clk 0:04:11.3]} 12. h3 {[%clk 0:04:19.5]} 12... Rd8+
{[%clk 0:04:04.2]} 13. Ke2 {[%clk 0:04:11]} 13... Be6 {[%clk 0:03:56.9]} 14.
Rhd1 {[%clk 0:04:06.9]} 14... Nd7 {[%clk 0:03:47.6]} 15. Ne5 {[%clk 0:03:55.6]}
15... Nxe5 {[%clk 0:03:43.2]} 16. Bxe5 {[%clk 0:03:55.1]} 16... Bc4+ {[%clk
0:03:41.5]} 17. Kf3 {[%clk 0:03:49.5]} 17... Rxd1 {[%clk 0:03:33]} 18. Rxd1
{[%clk 0:03:46.9]} 18... Re8 {[%clk 0:03:30.6]} 19. Bd6 {[%clk 0:03:41.7]} 19...
b6 {[%clk 0:03:03.3]} 20. Bxc5 {[%clk 0:03:33.9]} 20... bxc5 {[%clk 0:03:01.1]}
21. b3 {[%clk 0:03:33.5]} 21... Be6 {[%clk 0:02:56.3]} 22. g4 {[%clk 0:03:14.7]}
22... g5 {[%clk 0:02:42.9]} 23. Bf1 {[%clk 0:03:01.6]} 23... Rb8 {[%clk
0:02:00.8]} 24. Bc4 {[%clk 0:02:37]} 24... Bxc4 {[%clk 0:01:53.6]} 25. bxc4
{[%clk 0:02:36.8]} 25... Rb2 {[%clk 0:01:51.4]} 26. Kg3 {[%clk 0:02:28]} 26...
Rxa2 {[%clk 0:01:48.7]} 27. h4 {[%clk 0:02:27]} 27... Rc2 {[%clk 0:01:46]} 28.
h5 {[%clk 0:02:23.8]} 28... h6 {[%clk 0:01:42.3]} 29. Rd8+ {[%clk 0:02:16.4]}
29... Kg7 {[%clk 0:01:38.3]} 30. Rc8 {[%clk 0:02:14]} 30... Rxc3+ {[%clk
0:01:36.8]} 31. Kf2 {[%clk 0:02:10.9]} 31... Rxc4 {[%clk 0:01:35.7]} 32. Rxc6
{[%clk 0:02:10]} 32... a5 {[%clk 0:01:33.6]} 33. e5 {[%clk 0:02:06.2]} 33... a4
{[%clk 0:01:26.8]} 34. e6 {[%clk 0:02:04.3]} 34... fxe6 {[%clk 0:01:24.8]} 35.
Rxe6 {[%clk 0:02:04.2]} 35... a3 {[%clk 0:01:19.3]} 36. Re1 {[%clk 0:02:03.2]}
36... a2 {[%clk 0:01:05.6]} 37. Re7+ {[%clk 0:01:54.5]} 37... Kf6 {[%clk
0:01:03.2]} 38. Ra7 {[%clk 0:01:53.1]} 38... Rc2+ {[%clk 0:00:59.6]} 39. Ke3
{[%clk 0:01:51.3]} 39... Ke5 {[%clk 0:00:53.7]} 40. Kd3 {[%clk 0:01:49.8]} 40...
Rg2 {[%clk 0:00:48.7]} 41. Kc3 {[%clk 0:01:46.6]} 41... Kf4 {[%clk 0:00:45.8]}
42. Ra4+ {[%clk 0:01:41.5]} 42... Kg3 {[%clk 0:00:40.8]} 43. Kb3 {[%clk
0:01:36.8]} 43... Kh4 {[%clk 0:00:32.2]} 44. Kc4 {[%clk 0:01:30.4]} 44... Rxg4+
{[%clk 0:00:30.8]} 0-1

[Event "Live Chess"]
[Site "Chess.com"]
[Date "2023.05.21"]
[Round "-"]
[White "Ferrarifan27"]
[Black "domrobson"]
[Result "0-1"]
[WhiteElo "2069"]
[BlackElo "1721"]
[TimeControl "300"]
[EndTime "5:06:49 PDT"]
[Termination "domrobson won by checkmate"]

1. e4 {[%clk 0:04:58.8]} 1... e5 {[%clk 0:04:59]} 2. Nf3 {[%clk 0:04:57.6]} 2...
Nc6 {[%clk 0:04:58.7]} 3. Bb5 {[%clk 0:04:56.7]} 3... a6 {[%clk 0:04:57.4]} 4.
Ba4 {[%clk 0:04:55.3]} 4... Nf6 {[%clk 0:04:56.7]} 5. O-O {[%clk 0:04:54.2]}
5... Nxe4 {[%clk 0:04:56.1]} 6. d4 {[%clk 0:04:52.8]} 6... b5 {[%clk 0:04:55]}
7. Bb3 {[%clk 0:04:49.7]} 7... d5 {[%clk 0:04:53.9]} 8. dxe5 {[%clk 0:04:46.3]}
8... Be6 {[%clk 0:04:52.3]} 9. Nbd2 {[%clk 0:04:32.3]} 9... Nc5 {[%clk
0:04:47.9]} 10. Re1 {[%clk 0:04:27.5]} 10... Be7 {[%clk 0:04:45.3]} 11. c3
{[%clk 0:04:23.6]} 11... Nxb3 {[%clk 0:04:43.7]} 12. Nxb3 {[%clk 0:04:17.5]}
12... O-O {[%clk 0:04:42.1]} 13. Nbd4 {[%clk 0:04:16.5]} 13... Nxd4 {[%clk
0:04:40.9]} 14. Nxd4 {[%clk 0:04:10.6]} 14... c5 {[%clk 0:04:37.1]} 15. Nxe6
{[%clk 0:04:07.7]} 15... fxe6 {[%clk 0:04:36.4]} 16. Qg4 {[%clk 0:04:05.9]}
16... Qd7 {[%clk 0:04:34.3]} 17. Bh6 {[%clk 0:04:01.3]} 17... Rf7 {[%clk
0:04:31.5]} 18. Rad1 {[%clk 0:03:53.9]} 18... c4 {[%clk 0:04:28]} 19. Re2 {[%clk
0:03:47.1]} 19... Kh8 {[%clk 0:04:26.4]} 20. Be3 {[%clk 0:03:43.9]} 20... Raf8
{[%clk 0:04:24.2]} 21. Red2 {[%clk 0:03:42.1]} 21... Rf5 {[%clk 0:04:21]} 22.
Bd4 {[%clk 0:03:38.9]} 22... Qc7 {[%clk 0:04:08.8]} 23. Re2 {[%clk 0:03:27.2]}
23... Bc5 {[%clk 0:04:03.2]} 24. Bxc5 {[%clk 0:03:22.9]} 24... Qxc5 {[%clk
0:04:01.7]} 25. Rdd2 {[%clk 0:03:21.4]} 25... Qc7 {[%clk 0:03:59.5]} 26. Qg3
{[%clk 0:03:17.4]} 26... h6 {[%clk 0:03:57.2]} 27. Rd4 {[%clk 0:03:15.5]} 27...
a5 {[%clk 0:03:50.4]} 28. Rg4 {[%clk 0:03:13.7]} 28... b4 {[%clk 0:03:47.5]} 29.
h4 {[%clk 0:03:08.7]} 29... bxc3 {[%clk 0:03:38.9]} 30. Qxc3 {[%clk 0:03:00.8]}
30... Qa7 {[%clk 0:03:29.1]} 31. Qg3 {[%clk 0:02:56.1]} 31... d4 {[%clk
0:03:19.1]} 32. Ree4 {[%clk 0:02:36.1]} 32... d3 {[%clk 0:03:13.1]} 33. Rxc4
{[%clk 0:02:34.9]} 33... d2 {[%clk 0:03:07.7]} 34. Rgd4 {[%clk 0:02:21.4]} 34...
Rxf2 {[%clk 0:03:06.2]} 35. Kh2 {[%clk 0:02:05.8]} 35... Qb7 {[%clk 0:02:41.9]}
36. Rc2 {[%clk 0:01:51.8]} 36... d1=Q {[%clk 0:02:14.2]} 37. Rxf2 {[%clk
0:01:50]} 37... Qxd4 {[%clk 0:02:07.2]} 38. Rxf8+ {[%clk 0:01:48.7]} 38... Kh7
{[%clk 0:02:04.5]} 39. b3 {[%clk 0:01:41.2]} 39... Qbe4 {[%clk 0:02:02]} 40. h5
{[%clk 0:01:18.4]} 40... Qh4+ {[%clk 0:01:56.6]} 41. Qxh4 {[%clk 0:01:17.5]}
41... Qxh4+ {[%clk 0:01:55.8]} 42. Kg1 {[%clk 0:01:17.2]} 42... Qe1+ {[%clk
0:01:54.2]} 43. Kh2 {[%clk 0:01:15.5]} 43... Qxe5+ {[%clk 0:01:53.7]} 44. Kg1
{[%clk 0:01:14]} 44... Qxh5 {[%clk 0:01:53.2]} 45. Rf3 {[%clk 0:01:08.9]} 45...
Qg6 {[%clk 0:01:45.7]} 46. a4 {[%clk 0:01:07]} 46... e5 {[%clk 0:01:42.2]} 47.
Kf2 {[%clk 0:01:06]} 47... Qc2+ {[%clk 0:01:40.2]} 48. Kg3 {[%clk 0:01:04.5]}
48... e4 {[%clk 0:01:37.7]} 49. Re3 {[%clk 0:01:03.5]} 49... g5 {[%clk
0:01:27.6]} 50. Kg4 {[%clk 0:00:56]} 50... Kg6 {[%clk 0:01:26.1]} 51. Kg3 {[%clk
0:00:53.7]} 51... h5 {[%clk 0:01:24.1]} 52. b4 {[%clk 0:00:52.9]} 52... axb4
{[%clk 0:01:20.8]} 53. a5 {[%clk 0:00:51.5]} 53... h4+ {[%clk 0:01:19.4]} 54.
Kh2 {[%clk 0:00:49.2]} 54... b3 {[%clk 0:01:14.7]} 55. a6 {[%clk 0:00:47.8]}
55... b2 {[%clk 0:01:13.5]} 56. a7 {[%clk 0:00:47]} 56... Qc7+ {[%clk
0:01:12.5]} 57. Kh3 {[%clk 0:00:42.4]} 57... Qc8+ {[%clk 0:01:07.8]} 58. g4
{[%clk 0:00:39.8]} 58... b1=Q {[%clk 0:01:06.1]} 59. Re2 {[%clk 0:00:28.2]}
59... Qf1+ {[%clk 0:01:00.1]} 60. Rg2 {[%clk 0:00:26.1]} 60... Qc3+ {[%clk
0:00:54]} 61. Kh2 {[%clk 0:00:24.8]} 61... Qxg2+ {[%clk 0:00:50.5]} 62. Kxg2
{[%clk 0:00:23.7]} 62... Qf3+ {[%clk 0:00:48.5]} 63. Kg1 {[%clk 0:00:22.6]}
63... e3 {[%clk 0:00:47.2]} 64. a8=Q {[%clk 0:00:20.7]} 64... Qxa8 {[%clk
0:00:45.5]} 65. Kh2 {[%clk 0:00:20]} 65... Qa2+ {[%clk 0:00:42.9]} 66. Kh3
{[%clk 0:00:19.1]} 66... Qb3 {[%clk 0:00:39.3]} 67. Kg2 {[%clk 0:00:16.8]} 67...
e2 {[%clk 0:00:38.5]} 68. Kf2 {[%clk 0:00:16.1]} 68... Qd3 {[%clk 0:00:36.2]}
69. Ke1 {[%clk 0:00:15.2]} 69... Qd1+ {[%clk 0:00:35.3]} 70. Kf2 {[%clk
0:00:15.1]} 70... Qf1+ {[%clk 0:00:34.5]} 71. Ke3 {[%clk 0:00:14]} 71... e1=Q+
{[%clk 0:00:34.4]} 72. Kd4 {[%clk 0:00:13.5]} 72... Qf4+ {[%clk 0:00:32.8]} 73.
Kc5 {[%clk 0:00:13.4]} 73... Qee5+ {[%clk 0:00:32.2]} 74. Kc6 {[%clk 0:00:13.2]}
74... Qff6+ {[%clk 0:00:31.8]} 75. Kb7 {[%clk 0:00:12.9]} 75... Qee7+ {[%clk
0:00:31.4]} 76. Kb8 {[%clk 0:00:12.8]} 76... Qff8# {[%clk 0:00:30.8]} 0-1

[Event "Live Chess"]
[Site "Chess.com"]
[Date "2023.05.21"]
[Round "-"]
[White "Duke_of_Bebington"]
[Black "JoeyCage"]
[Result "1-0"]
[WhiteElo "1600"]
[BlackElo "2276"]
[TimeControl "300"]
[EndTime "5:07:05 PDT"]
[Termination "Duke_of_Bebington won by checkmate"]

1. f4 {[%clk 0:04:56.1]} 1... c5 {[%clk 0:04:59.1]} 2. Nf3 {[%clk 0:04:53.4]}
2... Nc6 {[%clk 0:04:58.3]} 3. e3 {[%clk 0:04:51.1]} 3... g6 {[%clk 0:04:55.7]}
4. b3 {[%clk 0:04:50.3]} 4... Bg7 {[%clk 0:04:54.6]} 5. Nc3 {[%clk 0:04:49.9]}
5... Nf6 {[%clk 0:04:53.4]} 6. Bb2 {[%clk 0:04:49.2]} 6... Ne4 {[%clk
0:04:51.3]} 7. Bd3 {[%clk 0:04:40]} 7... Nxc3 {[%clk 0:04:46.1]} 8. Bxc3 {[%clk
0:04:38.7]} 8... Bxc3 {[%clk 0:04:42.3]} 9. dxc3 {[%clk 0:04:38.6]} 9... O-O
{[%clk 0:04:41.6]} 10. O-O {[%clk 0:04:35.8]} 10... e6 {[%clk 0:04:40.2]} 11. e4
{[%clk 0:04:32.3]} 11... d5 {[%clk 0:04:38.6]} 12. e5 {[%clk 0:04:31]} 12... a6
{[%clk 0:04:37]} 13. Qe1 {[%clk 0:04:22.6]} 13... f6 {[%clk 0:04:35.3]} 14. Rd1
{[%clk 0:04:19.2]} 14... Qc7 {[%clk 0:04:29.3]} 15. Qg3 {[%clk 0:04:13.6]} 15...
f5 {[%clk 0:04:25.6]} 16. Ng5 {[%clk 0:04:10.7]} 16... b5 {[%clk 0:04:22.5]} 17.
c4 {[%clk 0:03:58.2]} 17... bxc4 {[%clk 0:04:20.8]} 18. bxc4 {[%clk 0:03:56.5]}
18... d4 {[%clk 0:04:08.2]} 19. Rb1 {[%clk 0:03:49]} 19... Bb7 {[%clk
0:04:04.6]} 20. Nxe6 {[%clk 0:03:45.7]} 20... Qe7 {[%clk 0:04:00.6]} 21. Nxf8
{[%clk 0:03:43.8]} 21... Rxf8 {[%clk 0:03:59.2]} 22. Rfe1 {[%clk 0:03:32.2]}
22... Nb4 {[%clk 0:03:57.1]} 23. a3 {[%clk 0:03:30.8]} 23... Na2 {[%clk
0:03:50.1]} 24. Rb3 {[%clk 0:03:15.3]} 24... Nc3 {[%clk 0:03:48.4]} 25. h3
{[%clk 0:02:58.9]} 25... Qc7 {[%clk 0:03:44.7]} 26. Qf2 {[%clk 0:02:50.7]} 26...
Kg7 {[%clk 0:03:41.6]} 27. g4 {[%clk 0:02:42.7]} 27... fxg4 {[%clk 0:03:39.5]}
28. hxg4 {[%clk 0:02:42.6]} 28... a5 {[%clk 0:03:38.1]} 29. f5 {[%clk
0:02:23.9]} 29... Qc6 {[%clk 0:03:32.5]} 30. Qh2 {[%clk 0:02:13.7]} 30... Qf3
{[%clk 0:03:25.5]} 31. Rxb7+ {[%clk 0:01:52.6]} 31... Qxb7 {[%clk 0:03:23.1]}
32. f6+ {[%clk 0:01:49]} 32... Kg8 {[%clk 0:03:21.8]} 33. Qh6 {[%clk 0:01:39.2]}
33... Qd7 {[%clk 0:02:47.2]} 34. e6 {[%clk 0:01:20.5]} 34... Qc7 {[%clk
0:02:45.7]} 35. f7+ {[%clk 0:01:03.9]} 35... Kh8 {[%clk 0:00:08.9]} 36. Qxf8#
{[%clk 0:01:00.4]} 1-0

[Event "Live Chess"]
[Site "Chess.com"]
[Date "2023.05.21"]
[Round "-"]
[White "BillythekidFellowes"]
[Black "Sha_25"]
[Result "1-0"]
[WhiteElo "2061"]
[BlackElo "1138"]
[TimeControl "300"]
[EndTime "5:07:06 PDT"]
[Termination "BillythekidFellowes won by resignation"]

1. e4 {[%clk 0:04:54.9]} 1... c6 {[%clk 0:04:58.7]} 2. Nf3 {[%clk 0:04:54.8]}
2... d5 {[%clk 0:04:58.3]} 3. exd5 {[%clk 0:04:53.9]} 3... cxd5 {[%clk
0:04:58.2]} 4. d4 {[%clk 0:04:53.8]} 4... Bg4 {[%clk 0:04:57.7]} 5. c4 {[%clk
0:04:53.1]} 5... Nc6 {[%clk 0:04:57.3]} 6. Nc3 {[%clk 0:04:52.6]} 6... e6 {[%clk
0:04:55.5]} 7. Be3 {[%clk 0:04:50.9]} 7... Nf6 {[%clk 0:04:54.3]} 8. Qb3 {[%clk
0:04:49.5]} 8... Qb6 {[%clk 0:04:52.4]} 9. Be2 {[%clk 0:04:46.8]} 9... Qxb3
{[%clk 0:04:47.7]} 10. axb3 {[%clk 0:04:46.7]} 10... Bb4 {[%clk 0:04:43.6]} 11.
O-O {[%clk 0:04:46]} 11... O-O {[%clk 0:04:38.3]} 12. Rfc1 {[%clk 0:04:36.3]}
12... a6 {[%clk 0:04:32.9]} 13. h3 {[%clk 0:04:04.1]} 13... Bxf3 {[%clk
0:04:22.5]} 14. Bxf3 {[%clk 0:04:04]} 14... Rfd8 {[%clk 0:04:10.1]} 15. Na4
{[%clk 0:03:54.8]} 15... b5 {[%clk 0:04:03.4]} 16. Nb6 {[%clk 0:03:49.2]} 16...
Ra7 {[%clk 0:03:56.9]} 17. cxb5 {[%clk 0:03:43.5]} 17... Na5 {[%clk 0:03:44]}
18. bxa6 {[%clk 0:03:37.1]} 18... Nxb3 {[%clk 0:03:41.7]} 19. Rc8 {[%clk
0:03:35.4]} 19... Rxc8 {[%clk 0:03:38]} 20. Nxc8 {[%clk 0:03:35.3]} 20... Nxa1
{[%clk 0:03:21.6]} 21. Nxa7 {[%clk 0:03:33.2]} 21... Nb3 {[%clk 0:03:18.6]} 22.
Nc6 {[%clk 0:03:32.2]} 22... Bc5 {[%clk 0:02:55]} 23. dxc5 {[%clk 0:03:30.4]}
23... Na5 {[%clk 0:02:53.2]} 24. a7 {[%clk 0:03:26.1]} 24... Nxc6 {[%clk
0:02:51]} 1-0

[Event "Live Chess"]
[Site "Chess.com"]
[Date "2023.05.21"]
[Round "-"]
[White "Doge_Dandolo"]
[Black "diana21strabt"]
[Result "1-0"]
[WhiteElo "1905"]
[BlackElo "1746"]
[TimeControl "300"]
[EndTime "5:07:06 PDT"]
[Termination "Doge_Dandolo won by resignation"]

1. Nf3 {[%clk 0:04:53.2]} 1... Nf6 {[%clk 0:04:58.7]} 2. c4 {[%clk 0:04:47.9]}
2... g6 {[%clk 0:04:57.7]} 3. Nc3 {[%clk 0:04:42.5]} 3... Bg7 {[%clk 0:04:56.9]}
4. e4 {[%clk 0:04:39.6]} 4... d6 {[%clk 0:04:55.9]} 5. d4 {[%clk 0:04:38.6]}
5... Nbd7 {[%clk 0:04:54.8]} 6. h3 {[%clk 0:04:35.7]} 6... O-O {[%clk
0:04:53.8]} 7. Bg5 {[%clk 0:04:33]} 7... e5 {[%clk 0:04:51.9]} 8. d5 {[%clk
0:04:30.4]} 8... a5 {[%clk 0:04:49.7]} 9. Qc2 {[%clk 0:04:27.4]} 9... h6 {[%clk
0:04:47.8]} 10. Bd2 {[%clk 0:04:22.1]} 10... Nc5 {[%clk 0:04:43.3]} 11. g4
{[%clk 0:04:18.9]} 11... Bd7 {[%clk 0:04:36.6]} 12. Rg1 {[%clk 0:04:13.9]} 12...
Nh7 {[%clk 0:04:31.3]} 13. O-O-O {[%clk 0:04:09.6]} 13... a4 {[%clk 0:04:29.1]}
14. Be2 {[%clk 0:04:02.4]} 14... a3 {[%clk 0:04:27.4]} 15. b3 {[%clk 0:04:00.8]}
15... Qe7 {[%clk 0:04:18.6]} 16. h4 {[%clk 0:03:55]} 16... c6 {[%clk 0:04:16.9]}
17. Be3 {[%clk 0:03:48.8]} 17... cxd5 {[%clk 0:04:15]} 18. Nxd5 {[%clk
0:03:46.7]} 18... Qd8 {[%clk 0:04:11.8]} 19. Kb1 {[%clk 0:03:22.5]} 19... Qc7
{[%clk 0:04:00.4]} 20. Nxc7 {[%clk 0:03:20.8]} 1-0

[Event "Live Chess"]
[Site "Chess.com"]
[Date "2023.05.21"]
[Round "-"]
[White "Leonid_Starozhilov"]
[Black "EdenHazard8"]
[Result "1-0"]
[WhiteElo "2633"]
[BlackElo "1932"]
[TimeControl "300"]
[EndTime "5:07:06 PDT"]
[Termination "Leonid_Starozhilov won by resignation"]

1. a4 {[%clk 0:04:58.6]} 1... e5 {[%clk 0:04:57]} 2. e4 {[%clk 0:04:57.3]} 2...
Nc6 {[%clk 0:04:55.7]} 3. Nc3 {[%clk 0:04:56.7]} 3... Bc5 {[%clk 0:04:54.1]} 4.
Bb5 {[%clk 0:04:55.2]} 4... Qg5 {[%clk 0:04:51.7]} 5. Kf1 {[%clk 0:04:49.8]}
5... Nge7 {[%clk 0:04:47.6]} 6. d4 {[%clk 0:04:46.1]} 6... exd4 {[%clk
0:04:45.9]} 7. Bxg5 {[%clk 0:04:44.8]} 7... f6 {[%clk 0:04:39.5]} 8. Bf4 {[%clk
0:04:40.3]} 8... g5 {[%clk 0:04:37.7]} 9. Bxc7 {[%clk 0:04:38.7]} 9... Nb4
{[%clk 0:04:33.8]} 10. Nce2 {[%clk 0:04:35.3]} 10... d3 {[%clk 0:04:30]} 11.
Bxd3 {[%clk 0:04:31.4]} 1-0

[Event "Live Chess"]
[Site "Chess.com"]
[Date "2023.05.21"]
[Round "-"]
[White "zdanevych"]
[Black "ExIsambard"]
[Result "0-1"]
[WhiteElo "1531"]
[BlackElo "1909"]
[TimeControl "300"]
[EndTime "5:07:09 PDT"]
[Termination "ExIsambard won by resignation"]

1. d4 {[%clk 0:04:58.9]} 1... Nf6 {[%clk 0:04:57.7]} 2. c4 {[%clk 0:04:58.1]}
2... e5 {[%clk 0:04:56.3]} 3. dxe5 {[%clk 0:04:56.6]} 3... Ng4 {[%clk
0:04:52.4]} 4. Nf3 {[%clk 0:04:54.9]} 4... d6 {[%clk 0:04:46]} 5. exd6 {[%clk
0:04:53.7]} 5... Bxd6 {[%clk 0:04:44.4]} 6. Nc3 {[%clk 0:04:44.3]} 6... O-O
{[%clk 0:04:40.9]} 7. h3 {[%clk 0:04:43.2]} 7... Ne5 {[%clk 0:04:35.9]} 8. Nxe5
{[%clk 0:04:41.1]} 8... Bxe5 {[%clk 0:04:35.8]} 9. Qxd8 {[%clk 0:04:38.6]} 9...
Rxd8 {[%clk 0:04:35.7]} 10. Bd2 {[%clk 0:04:25.3]} 10... Be6 {[%clk 0:04:33.7]}
11. e3 {[%clk 0:04:18.6]} 11... Nc6 {[%clk 0:04:02.3]} 12. a3 {[%clk 0:04:14.1]}
12... Na5 {[%clk 0:03:50.3]} 13. Rd1 {[%clk 0:03:46.7]} 13... Nxc4 {[%clk
0:03:34.8]} 14. Bxc4 {[%clk 0:03:42.8]} 14... Bxc4 {[%clk 0:03:32.3]} 15. f4
{[%clk 0:03:38]} 15... Bf6 {[%clk 0:03:27.5]} 16. Ne4 {[%clk 0:03:35.6]} 16...
Bxb2 {[%clk 0:03:22.6]} 17. Bb4 {[%clk 0:03:27.3]} 17... a5 {[%clk 0:03:17.4]}
18. Bc5 {[%clk 0:03:12.7]} 18... Re8 {[%clk 0:03:08.6]} 19. Nd2 {[%clk
0:02:51.9]} 19... Ba6 {[%clk 0:03:05.3]} 20. Kf2 {[%clk 0:02:46.5]} 20... b6
{[%clk 0:03:02.3]} 21. Bd4 {[%clk 0:02:40.9]} 21... Bxa3 {[%clk 0:03:01.4]} 22.
Be5 {[%clk 0:02:37.5]} 22... f6 {[%clk 0:02:50.2]} 23. Bxc7 {[%clk 0:02:33.6]}
23... Bc5 {[%clk 0:02:48.6]} 24. Rhe1 {[%clk 0:02:24.6]} 24... Rac8 {[%clk
0:02:47.8]} 25. Bxb6 {[%clk 0:02:18.5]} 25... Bxb6 {[%clk 0:02:44.2]} 26. Nf3
{[%clk 0:02:15.7]} 26... Rc2+ {[%clk 0:02:41]} 27. Kg3 {[%clk 0:02:14.2]} 27...
Bxe3 {[%clk 0:02:30]} 28. Nd4 {[%clk 0:02:03.7]} 28... Bf2+ {[%clk 0:02:22.6]}
0-1